[Event "41st Zalakaros Festival 2022"]
[Site "Zalakaros"]
[Date "2022.06.11"]
[Round "7.3"]
[White "Sammed Jaykumar, Shete"]
[Black "Leszko, Bence"]
[Result "1-0"]
[ECO "D45"]
[WhiteElo "2400"]
[BlackElo "2248"]
[Annotator "TA"]
[PlyCount "79"]
[EventDate "2022.06.05"]
[EventType "swiss"]
[EventCountry "HUN"]
[SourceTitle "playchess.com"]
[Source "ChessBase"]
[SourceQuality "1"]
[TimeControl "40/5400+30:1800+30"]

{[%evp 14,79,1,0,20,12,4,10,22,0,9,1,30,22,49,29,39,38,45,30,29,36,48,27,47,46,47,19,34,33,62,47,61,48,100,81,65,29,68,56,64,54,72,43,43,35,85,60,109,117,124,129,157,155,259,207,198,190,245,245,237,241,254,230,840,820,29990,29991]} 1. c4 {[%emt 0:00:33]} Nf6 {[%emt 0:18:13]} 2. d4 {[%emt 0:00:16]} e6 {[%emt 0:00:06]} 3. Nf3 {[%emt 0:00:15]} d5 {[%emt 0:00:38]} 4. Nc3 {[%emt 0:00:12]} c6 {[%emt 0:00:07]} 5. e3 {[%emt 0:00:25]} Nbd7 {[%emt 0:00:22]} 6. Be2 {[%emt 0:00:25]} Bd6 {[%emt 0:00:06]} 7. O-O {[%emt 0:00:15]} O-O {[%emt 0:00:09]} 8. b3 {[%emt 0:00:13]} Qc7 {[%emt 0:00:58] D45: Semi-Slav: 5 e3.} 9. h3 {[%emt 0:03:03]} b6 {[%emt 0:05:28]} 10. Bb2 {[%emt 0:00:45]} Bb7 {[%emt 0:00:20] [#] The position is equal.} 11. Bd3 $146 {[%emt 0:05:24]} ({Predecessor:} 11. Rc1 a6 12. cxd5 Nxd5 13. Ne4 Be7 14. Bd3 Qd8 15. Bb1 N5f6 16. Nxf6+ Bxf6 17. Qd3 {0-1 (58) Bozzao,F (1867)-Fracasso Pezzolato,M (1796) Mestre 2011}) 11... Rac8 {[%emt 0:02:17]} 12. Qe2 {[%emt 0:03:57]} dxc4 {[%emt 0:04:56]} 13. bxc4 {[%emt 0:03:30]} e5 {[%emt 0:00:28]} 14. c5 {[%emt 0:05:05]} bxc5 {[%emt 0:00:40]} 15. dxe5 {[%emt 0:00:12]} Nxe5 {[%emt 0:00:05]} 16. Nxe5 {[%emt 0:00:54]} Bxe5 {[%emt 0:00:02]} 17. Rac1 {[%emt 0:03:08]} c4 {[%emt 0:06:16]} 18. Bxc4 {[%emt 0:01:45]} c5 {[%emt 0:02:11]} 19. f4 {[%emt 0:04:40]} Bxc3 {[%emt 0:00:24]} 20. Bxc3 {[%emt 0:00:10]} Ne4 {[%emt 0:04:18]} 21. Be5 {[%emt 0:00:10] A strong pair of Bishops.} Qc6 {[%emt 0:00:41]} 22. Qb2 {[%emt 0:00:26]} Rfd8 {[%emt 0:08:59]} 23. Rfd1 {[%emt 0:01:02] Prevents Rd2.} (23. Bxg7 $2 Rd2 24. Rc2 Rxc2 25. Qxc2 Kxg7 $19) 23... Nf6 {[%emt 0:01:21]} ({Better is} 23... Ng3 $14) 24. Bxf6 {[%emt 0:16:03] White is much more active.} gxf6 {[%emt 0:00:15]} 25. Rf1 {[%emt 0:00:23][%cal Bd1f1,Bf1f2,Bf2c2,Bc2c3,Bc3g3][%mdl 32]} Kf8 {[%emt 0:03:42]} 26. Rf2 {[%emt 0:01:42]} Rd6 {[%emt 0:02:02]} 27. Qa3 {[%emt 0:04:14]} Ba6 {[%emt 0:05:26]} 28. e4 {[%emt 0:03:34] [#] Black must now prevent e5.} Bxc4 {[%emt 0:03:56]} 29. Rxc4 Rd7 {[%emt 0:06:25]} (29... Rd1+ $14 30. Kh2 Qd6) 30. Rfc2 {[%emt 0:02:43][%cal Rc4c5]} Qb6 {[%emt 0:01:38]} (30... Rd1+ $14 31. Kh2 Qd6) 31. Kh2 $16 {[%emt 0:01:01][%cal Rc4c5]} (31. Rxc5 $2 Rdc7 32. Kh2 Rxc5 $19) 31... Qd6 {[%emt 0:00:50]} 32. Qe3 {[%emt 0:01:50]} (32. Rxc5 $6 Qxf4+ 33. Qg3 Qxg3+ 34. Kxg3 Rxc5 35. Rxc5 Rd3+ 36. Kf4 Rd2 $11) 32... Qd3 {[%emt 0:03:09] [#]} 33. Qf2 {[%emt 0:00:28]} (33. Qxd3 $6 Rxd3 34. Rxc5 Rxc5 35. Rxc5 Ra3 $14) 33... Re7 {[%emt 0:01:54]} (33... Rdd8 $16 {is a better defense.} 34. Rxc5 Rxc5 35. Qxc5+ Qd6) 34. R2c3 {[%emt 0:01:22]} (34. Rxc5 Rxc5 35. Qxc5 Qxe4 $16) 34... Qd6 {[%emt 0:00:34]} 35. Qh4 {[%emt 0:00:16] And now Qh6+ would win.} Re6 {[%emt 0:02:26]} (35... Ke8 {might work better.} 36. Rg3 (36. Qxh7 Qxf4+ 37. Rg3 Qe5 $14) 36... Rc6) 36. Rg3 $18 {[%emt 0:04:02]} ({Stronger than} 36. Qxh7 Qxf4+ 37. Rg3 Ke7 $11) 36... Rb8 {[%emt 0:01:05]} 37. Qxh7 {[%emt 0:05:41][%cal Oe4e5] e5! is the strong threat.} ({Less strong is} 37. Qg4 Rb4 38. Rcc3 (38. Rxb4 cxb4 39. Qf5 a5 $11) 38... Ke7 $16) 37... Qxf4 {[%emt 0:00:16]} 38. Rxc5 {[%emt 0:00:13][%cal Oe4e5] Threatens to win with e5!} Rd8 $2 {[%emt 0:07:59]} (38... Qd6 39. Qh6+ Ke7) 39. e5 {[%emt 0:02:18] Rc7 would kill now.} fxe5 {[%emt 0:00:26]} 40. Rc7 {[%emt 0:00:00] Weighted Error Value: White=0.08 (flawless) /Black=0.50} 1-0

[Event "41st Zalakaros Festival 2022"]
[Site "Zalakaros"]
[Date "2022.06.11"]
[Round "7.4"]
[White "Kantor, Gergely"]
[Black "Okhotnik, Vladimir"]
[Result "1-0"]
[ECO "D96"]
[WhiteElo "2587"]
[BlackElo "2336"]
[Annotator "TA"]
[PlyCount "125"]
[EventDate "2022.06.05"]
[EventType "swiss"]
[EventCountry "HUN"]
[SourceTitle "playchess.com"]
[Source "ChessBase"]
[SourceQuality "1"]
[TimeControl "40/5400+30:1800+30"]

{[%evp 10,125,43,0,0,0,41,17,23,25,30,16,8,0,13,3,15,13,12,11,7,9,14,0,4,0,3,0,0,0,0,0,0,0,32,47,39,27,43,37,58,47,73,73,75,66,72,72,68,71,87,59,75,67,70,66,77,71,67,25,27,25,18,23,27,19,16,17,137,137,140,135,214,74,82,36,36,36,42,25,36,20,268,254,258,260,270,270,265,81,81,81,88,81,94,87,1041,1024,942,937,893,831,633,564,502,489,12841,12842,12844,12844,12846,12846,12847,12847,12848,12847,12848,12848]} 1. d4 {[%emt 0:00:45]} Nf6 {[%emt 0:00:39]} 2. c4 {[%emt 0:01:18]} g6 {[%emt 0:00:11]} 3. Nc3 {[%emt 0:01:09]} d5 {[%emt 0:00:10]} 4. Nf3 {[%emt 0:03:07]} Bg7 {[%emt 0:00:19]} 5. Qb3 {[%emt 0:00:05]} c6 {[%emt 0:00:35]} 6. Bg5 {[%emt 0:05:05]} dxc4 {[%emt 0:03:29] D96: Grünfeld: Russian System (5 Qb3): sidelines.} 7. Qxc4 {[%emt 0:01:01]} Bg4 {[%emt 0:00:35]} 8. e3 {[%emt 0:05:58]} Bxf3 {[%emt 0:00:18] The position is equal.} 9. gxf3 {[%emt 0:00:13]} Nbd7 {[%emt 0:05:20] [#]} 10. Qb3 $146 {[%emt 0:05:34]} ({Predecessor:} 10. Bg2 e5 11. O-O-O Qa5 12. dxe5 Nxe5 13. Qh4 Ned7 14. Rd6 O-O 15. Rhd1 Nd5 16. Qa4 Qxa4 17. Nxa4 {1-0 (48) El Debs,F (2477)-Matsuura,E (2487) Campinas 2011}) 10... Qb6 {[%emt 0:03:21]} 11. Qc2 {[%emt 0:01:22]} Qa5 {[%emt 0:01:46]} 12. f4 {[%emt 0:02:29]} h6 {[%emt 0:02:32]} 13. Bxf6 {[%emt 0:01:22]} Nxf6 {[%emt 0:02:56]} 14. Bg2 {[%emt 0:05:15]} Rb8 {[%emt 0:00:40]} 15. O-O {[%emt 0:05:06]} O-O {[%emt 0:00:36]} 16. a3 {[%emt 0:05:30]} Rfc8 {[%emt 0:05:16]} 17. b4 {[%emt 0:02:19][%cal Bb2b4,Bb4a5][%mdl 32]} Qh5 {[%emt 0:00:17]} 18. Rfc1 {[%emt 0:05:32][%cal Bf1c1,Bc1c3,Bc3b3,Bb3b7][%mdl 32]} e6 {[%emt 0:01:25]} 19. Rab1 {[%emt 0:05:55]} Bf8 {[%emt 0:00:56]} 20. Qd1 {[%emt 0:05:24]} Qxd1+ {[%emt 0:04:21]} 21. Nxd1 {[%emt 0:01:04]} a5 {[%emt 0:00:34]} 22. bxa5 {[%emt 0:04:07]} Bxa3 {[%emt 0:01:01]} 23. Rc3 {[%emt 0:17:57]} Bd6 {[%emt 0:00:39]} 24. Rcb3 {[%emt 0:02:06]} Bc7 {[%emt 0:01:46]} 25. Ra1 {[%emt 0:05:33]} Ra8 {[%emt 0:02:21]} 26. Rxb7 {[%emt 0:00:30]} Bxa5 {[%emt 0:00:04]} 27. Rb3 {[%emt 0:01:58]} Bd8 {[%emt 0:04:00]} 28. Rxa8 {[%emt 0:00:20]} Rxa8 {[%emt 0:00:05]} 29. Bxc6 {[%emt 0:00:06]} Ra1 {[%emt 0:02:03]} 30. Bf3 {[%emt 0:01:15]} Ba5 {[%emt 0:02:08]} 31. Rb8+ {[%emt 0:02:59]} Kg7 {[%emt 0:00:06]} 32. Ra8 {[%emt 0:00:25]} Ra3 {[%emt 0:02:08]} 33. Nb2 {[%emt 0:01:15]} Bb4 {[%emt 0:00:26]} 34. Rb8 {[%emt 0:00:39]} Bd6 {[%emt 0:00:13]} 35. Rb7 {[%emt 0:01:09] And now Nc4 would win.} Bxf4 $1 {[%emt 0:00:40]} 36. Kg2 {[%emt 0:01:56]} Bd6 {[%emt 0:00:16]} 37. Nc4 {[%emt 0:00:17][%csl LRa3,LRd6]} Ra6 {[%emt 0:00:06]} 38. e4 {[%emt 0:00:35][%cal Be3e4,Be4e5][%mdl 32]} Bf4 {[%emt 0:02:09]} (38... Ne8 $11) 39. e5 $1 $16 {[%emt 0:00:21]} Nh7 {[%emt 0:11:31]} (39... Nd5 $2 40. Nd6 Kg8 41. Nxf7 (41. Bxd5 exd5 42. Rb8+ Kh7 $18)) 40. h4 {[%emt 0:00:00]} Ra4 {[%emt 0:00:00] [#]} (40... h5 $16 {keeps fighting.} 41. Rc7 (41. Nd6 Rxd6 42. exd6 Bxd6 $16) 41... Ra2) 41. Rc7 {[%emt 0:11:13]} ({And not} 41. Nd6 Rxd4 42. Nxf7 (42. Rxf7+ Kg8 $15) 42... Kg8 $11) (41. d5 $1 $18 {[%cal Rd5e6] Threatens to win with dxe6!} Rxc4 (41... Nf8 42. Nd6) 42. dxe6) 41... Nf8 {[%emt 0:07:16]} 42. Be4 {[%emt 0:02:53] White is more active.} (42. d5 $16) 42... g5 {[%emt 0:04:16]} 43. h5 {[%emt 0:02:05]} Kg8 {[%emt 0:00:57]} 44. Rc8 {[%emt 0:10:07]} g4 {[%emt 0:05:16]} 45. d5 {[%emt 0:01:08]} exd5 $2 {[%emt 0:03:00]} (45... Kg7 $11 {and Black is okay.}) 46. Bxd5 $18 {[%emt 0:00:03]} Ra7 {[%emt 0:00:15]} 47. Re8 {[%emt 0:01:13] Prevents Re7.} Kg7 {[%emt 0:00:58]} 48. Nd6 {[%emt 0:00:14] aiming for Nf5+.} Ne6 {[%emt 0:02:23] [#]} 49. Bxe6 $2 {[%emt 0:02:22]} (49. Nf5+ $1 $18 {is the precise move to win.} Kh7 50. Ne7 (50. Bxe6 fxe6 51. Rxe6 Ra5 $16)) 49... fxe6 $16 {[%emt 0:00:09]} 50. Rxe6 $18 {[%emt 0:00:04][%mdl 4096] Endgame KRB-KRN} Ra5 {[%emt 0:03:23]} 51. Nf5+ {[%emt 0:05:00]} Kh7 {[%emt 0:00:51]} 52. Re7+ {[%emt 0:00:13]} Kh8 $2 {[%emt 0:00:57][%mdl 8192] [#]} (52... Kg8 $16) 53. Nh4 $1 {[%emt 0:00:27] Black must now prevent Ng6+. White is clearly winning.} Kg8 {[%emt 0:00:56]} 54. Ng6 {[%emt 0:00:06]} Bg5 {[%emt 0:00:32]} 55. Rb7 {[%emt 0:00:13]} Ra1 {[%emt 0:01:47]} 56. Rb4 {[%emt 0:01:28]} Kf7 {[%emt 0:01:03]} 57. Rxg4 {[%emt 0:00:11]} Ke6 {[%emt 0:00:10] [#]} (57... Bc1 $142 58. Rc4 Ke6) 58. Rxg5 $1 {[%emt 0:00:48]} hxg5 {[%emt 0:00:16]} (58... Re1 59. Nf4+) 59. h6 {[%emt 0:00:01]} Kf7 {[%emt 0:01:28]} 60. h7 {[%emt 0:00:19]} Kxg6 {[%emt 0:00:11]} 61. h8=Q {[%emt 0:00:08]} Ra6 {[%emt 0:00:08]} 62. Qc8 {[%emt 0:00:30]} Rb6 {[%emt 0:00:24]} 63. Qc2+ {[%emt 0:00:04] Weighted Error Value: White=0.15 (very precise) /Black=0.20 (precise)} 1-0

[Event "41st Zalakaros Festival 2022"]
[Site "Zalakaros"]
[Date "2022.06.11"]
[Round "7.5"]
[White "Nemeth, Zalan"]
[Black "Papp, Levente"]
[Result "1/2-1/2"]
[ECO "A20"]
[WhiteElo "2177"]
[BlackElo "2401"]
[Annotator "TA"]
[PlyCount "99"]
[EventDate "2022.06.05"]
[EventType "swiss"]
[EventCountry "HUN"]
[SourceTitle "playchess.com"]
[Source "ChessBase"]
[SourceQuality "1"]
[TimeControl "40/5400+30:1800+30"]

{[%evp 9,99,22,28,8,8,8,8,3,9,2,15,10,12,20,12,7,0,0,0,8,8,8,9,18,19,0,27,13,4,0,4,-73,-79,-69,-67,-68,-56,-129,-88,-93,-103,-100,-106,-95,-42,-64,-56,-55,-20,-19,-5,-6,-8,-5,-6,-16,0,-2,0,0,0,-8,0,-4,0,0,0,0,0,0,0,0,0,0,0,0,0,0,0,0,0,0,0,0,0,0,0,0,0,0,0,0]} 1. c4 {[%emt 0:00:32]} e5 {[%emt 0:01:16][%cal Be7e5,Be5e4][%mdl 32]} 2. g3 {[%emt 0:00:08]} Nf6 {[%emt 0:00:06]} 3. Bg2 {[%emt 0:00:03]} c6 {[%emt 0:00:22]} 4. Nf3 {[%emt 0:00:05]} e4 {[%emt 0:00:05]} 5. Nd4 {[%emt 0:00:02]} Qb6 {[%emt 0:00:13]} (5... d5 {looks sharper.} 6. d3 Bc5 7. Nb3 Bb6) 6. Nc2 {[%emt 0:00:22] A20: English Opening: 1...e5.} d5 {[%emt 0:00:17]} 7. cxd5 {[%emt 0:00:23]} cxd5 {[%emt 0:02:46]} 8. O-O {[%emt 0:00:16]} Be7 {[%emt 0:03:37]} 9. d3 {[%emt 0:01:39]} O-O {[%emt 0:01:07]} 10. Be3 {[%emt 0:05:15] [#]} Qxb2 $146 {[%emt 0:13:00]} ({Predecessor:} 10... Qa6 11. Nc3 exd3 12. Qxd3 Qxd3 13. exd3 Rd8 14. Rfe1 Nc6 15. Nb5 Bf5 16. Ncd4 Nxd4 17. Bxd4 {½-½ (42) Schneider,B (2409)-Alienkin,A (2387) Belgium 2013}) 11. Bd4 {[%emt 0:00:10]} Qb5 {[%emt 0:00:07]} 12. Nc3 {[%emt 0:00:09][%csl LRb5,LRe4]} Qa5 {[%emt 0:00:10]} 13. dxe4 {[%emt 0:05:32]} dxe4 {[%emt 0:00:25]} 14. Nxe4 {[%emt 0:00:18]} ({Don't play} 14. Bxe4 Rd8 15. Qd2 Nxe4 16. Nxe4 Qxd2 17. Nxd2 Nc6 $17) 14... Nxe4 {[%emt 0:00:21]} 15. Bxe4 {[%emt 0:00:21]} Nc6 {[%emt 0:00:18]} 16. Qd3 {[%emt 0:09:52]} h6 {[%emt 0:18:29]} 17. Bc3 {[%emt 0:17:47]} Qh5 {[%emt 0:02:34]} 18. Rfb1 {[%emt 0:07:34]} Rd8 {[%emt 0:09:11]} 19. Qb5 {[%emt 0:01:42]} Bc5 {[%emt 0:10:54]} 20. Ne3 {[%emt 0:14:34]} (20. Bxc6 bxc6 21. Qxc6 {[#]} Bxf2+ $1 22. Kxf2 Bd7 $17) (20. e3 $11 a6 21. Qb2) 20... a6 $17 {[%emt 0:03:38]} 21. Qb2 {[%emt 0:02:21]} Bxe3 {[%emt 0:04:58]} 22. fxe3 {[%emt 0:00:07]} Qg5 {[%emt 0:00:43]} 23. Kf2 {[%emt 0:00:14]} (23. Bf3 $15) 23... Re8 {[%emt 0:02:11]} 24. h4 {[%emt 0:07:03]} Qe7 {[%emt 0:01:35]} 25. Bf3 {[%emt 0:00:16]} Qxe3+ {[%emt 0:00:44]} 26. Kg2 {[%emt 0:00:41]} Bf5 {[%emt 0:02:27]} (26... Qe6 $17 {Hoping for ...Qh3+.} 27. Rh1 Qg6) 27. Rf1 {[%emt 0:04:16]} Qe6 {[%emt 0:06:00] ...Bh3+ is the strong threat.} 28. Rf2 {[%emt 0:00:05]} f6 {[%emt 0:05:12]} 29. Qxb7 {[%emt 0:00:38] The position is equal.} Be4 {[%emt 0:00:05]} 30. Qb3 {[%emt 0:01:59]} ({Much worse is} 30. Bxe4 Qxe4+ 31. Kh2 Qe3 32. Qb3+ Re6 $17) 30... Rab8 {[%emt 0:02:51]} 31. Qxe6+ {[%emt 0:00:39]} Rxe6 {[%emt 0:00:01]} 32. Rc1 {[%emt 0:01:33]} Ne7 {[%emt 0:01:31]} 33. Bd4 {[%emt 0:03:28]} Rd8 {[%emt 0:01:10]} 34. e3 {[%emt 0:01:10]} Bxf3+ {[%emt 0:01:14]} 35. Rxf3 {[%emt 0:03:11]} Nc6 {[%emt 0:02:19]} 36. Rc4 {[%emt 0:01:01]} Rdd6 {[%emt 0:03:21]} 37. Ra4 {[%emt 0:00:59]} Ne5 {[%emt 0:02:34]} 38. Bxe5 {[%emt 0:01:26]} Rxe5 $11 {[%emt 0:00:02][%mdl 4096] Endgame KRR-KRR} 39. e4 {[%emt 0:00:18]} Rb5 {[%emt 0:00:49]} 40. Rb3 {[%emt 0:00:00]} Rd2+ {[%emt 0:00:00]} 41. Kh3 {[%emt 0:05:13]} Rxa2 {[%emt 0:13:25]} 42. Rxa2 {[%emt 0:00:05]} Rxb3 {[%emt 0:00:05]} 43. Rxa6 {[%emt 0:00:05] KR-KR} Rb4 {[%emt 0:02:09]} 44. Ra8+ {[%emt 0:01:52]} Kh7 {[%emt 0:00:42]} 45. Re8 {[%emt 0:00:27]} h5 {[%emt 0:02:19]} 46. Kg2 {[%emt 0:00:30]} Kg6 {[%emt 0:01:33]} 47. Re7 {[%emt 0:00:07]} Rb1 {[%emt 0:01:01]} 48. Kf2 {[%emt 0:00:11]} Rb5 {[%emt 0:00:14]} 49. Kf3 {[%emt 0:00:11]} Rb3+ {[%emt 0:00:26]} 50. Kf2 {[%emt 0:00:10] Weighted Error Value: White=0.08 (flawless) /Black=0.07 (flawless)} 1/2-1/2

[Event "41st Zalakaros Festival 2022"]
[Site "Zalakaros"]
[Date "2022.06.11"]
[Round "7.6"]
[White "Farkas, Gabor"]
[Black "Forgacs, Attila Jr."]
[Result "0-1"]
[ECO "A05"]
[WhiteElo "2324"]
[BlackElo "2234"]
[Annotator "TA"]
[PlyCount "74"]
[EventDate "2022.06.05"]
[EventType "swiss"]
[EventCountry "HUN"]
[SourceTitle "playchess.com"]
[Source "ChessBase"]
[SourceQuality "1"]
[TimeControl "40/5400+30:1800+30"]

{[%evp 14,74,48,50,56,40,97,94,87,72,112,79,85,61,108,87,134,109,137,0,9,-53,0,0,0,0,0,0,40,-41,-27,-56,-53,-41,-43,-49,-40,-125,-98,-243,-164,-183,-183,-158,-149,-295,0,0,0,0,0,-739,0,0,0,-688,-700,-2325,-2226,-2028,-1674,-29997,-29998]} 1. Nf3 {[%emt 0:00:33]} Nf6 {[%emt 0:00:38]} 2. g3 {[%emt 0:00:42]} g6 {[%emt 0:00:04]} 3. b3 {[%emt 0:00:12]} Bg7 {[%emt 0:00:06]} 4. Bb2 {[%emt 0:00:07]} O-O {[%emt 0:00:09]} 5. Bg2 {[%emt 0:00:37]} d6 {[%emt 0:00:10]} 6. d4 {[%emt 0:00:07]} e5 {[%emt 0:00:37]} 7. dxe5 {[%emt 0:00:07]} Nfd7 {[%emt 0:00:21]} 8. Nc3 {[%emt 0:01:14]} dxe5 {[%emt 0:00:23][%cal Oe5e4] 8...Nxe5 is vanishing. A49: 1 d4 Nf6 2 Nf3 g6 3 g3: Anti-King's Indian systems.} 9. Qd2 {[%emt 0:01:08]} Nc6 {[%emt 0:00:36]} (9... Nb6 $1 $14) 10. O-O-O $16 {[%emt 0:01:31]} a5 {[%emt 0:00:31][%cal Oa5a4] White is better.} 11. h4 {[%emt 0:00:29][%cal Bh2h4,Bh4h5][%mdl 32]} h6 {[%emt 0:00:40][%cal Oa5a4]} 12. Kb1 {[%emt 0:03:07] [#]} a4 $146 {[%emt 0:02:24]} ({Predecessor:} 12... Nb6 13. Qxd8 Nxd8 14. Nb5 Bd7 15. Nxc7 Rc8 16. Rd6 Bc6 17. Rhd1 f6 18. Bh3 Rxc7 19. Rxd8 {1-0 (43) Sredojevic,I (2368)-Ongut,T (2127) Budapest 2017}) 13. Nxa4 {[%emt 0:01:14]} Rxa4 {[%emt 0:01:15]} 14. bxa4 {[%emt 0:00:12] And now Bh3 would win.} Qe8 {[%emt 0:01:25]} (14... Qe7 $142) 15. h5 $1 {[%emt 0:07:28] hxg6 is the strong threat.} Nb6 {[%emt 0:07:44]} 16. e4 {[%emt 0:06:24]} (16. Rh4 $16) 16... g5 $11 {[%emt 0:18:33]} 17. Bf1 {[%emt 0:07:41]} (17. a5 $11 Nc4 18. Qc3 N6xa5 19. Nd2) 17... Nxa4 {[%emt 0:03:02]} (17... Bg4 $15 18. Be2 Nxa4) 18. Bb5 {[%emt 0:08:57]} Nxb2 {[%emt 0:09:34]} 19. Kxb2 {[%emt 0:00:02]} Bg4 {[%emt 0:00:53]} 20. Qc3 {[%emt 0:06:35]} f5 {[%emt 0:04:55][%cal Bf7f5,Bf5f4][%mdl 32]} 21. Nd2 {[%emt 0:03:21]} Bxd1 $15 {[%emt 0:01:57]} 22. Bxc6 {[%emt 0:02:01]} bxc6 {[%emt 0:01:42]} 23. Rxd1 {[%emt 0:00:15]} Qxh5 {[%emt 0:03:31]} 24. Re1 {[%emt 0:01:30]} f4 {[%emt 0:14:48]} (24... Qh2 $5 {[%cal Rh2f2]}) 25. Qxc6 {[%emt 0:02:24] [#]} (25. a4 $1 $15) 25... Qh2 $1 $17 {[%emt 0:00:54][%csl LRf2,LRg3]} 26. Qc4+ {[%emt 0:05:53]} (26. Rf1 $17 {was necessary.}) 26... Kh8 {[%emt 0:01:37]} 27. Qe2 {[%emt 0:05:10]} fxg3 {[%emt 0:01:29]} 28. fxg3 {[%emt 0:01:35]} Rf2 $36 {[%emt 0:03:48][%mdl 2048] Black is in control.} ({Stronger than} 28... Qxg3 29. Nb3 $17) 29. Qa6 {[%emt 0:00:19] [#]} (29. Qg4 $17) 29... Rxd2 $2 {[%emt 0:04:30]} (29... Kh7 $1 $19 30. Qe6 Qxg3) 30. Qc8+ $11 {[%emt 0:00:05]} Kh7 {[%emt 0:00:10]} 31. Qf5+ {[%emt 0:00:11]} Kg8 {[%emt 0:00:46]} 32. Qc8+ $2 {[%emt 0:02:02][%mdl 8192]} (32. Qe6+ $11 Kf8 33. Rf1+ Rf2 34. Rd1) 32... Kh7 {[%emt 0:00:43]} 33. Qf5+ {[%emt 0:00:09]} Kg8 {[%emt 0:00:05]} 34. Qc8+ {[%emt 0:01:00]} Bf8 {[%emt 0:02:15]} 35. Qxc7 {[%emt 0:05:15]} Qxg3 {[%emt 0:01:49]} 36. Rf1 {[%emt 0:00:01]} Rf2 {[%emt 0:01:55] ( -> ...Ba3+)} 37. Rxf2 {[%emt 0:00:59]} Ba3+ {[%emt 0:00:37] Weighted Error Value: White=0.85/Black=0.36} 0-1